[Event "*** Qualifier 2: Titled Tuesday 3|2 Blitz"]
[Site "Chess.com"]
[Date "2017.04.11"]
[Round "9"]
[White "oskariot"]
[Black "Alexander_Moskalenko"]
[Result "1-0"]
[WhiteElo "2441"]
[BlackElo "2634"]
[TimeControl "180+2"]
[EndTime "15:08:33 PDT"]
[Termination "oskariot won on time"]

1. c4 {[%clk 0:03:02]} 1... d6 {[%clk 0:03:02]} 2. g3 {[%clk 0:03:02.9]} 2... e5
{[%clk 0:03:03.4]} 3. Bg2 {[%clk 0:03:04.3]} 3... g6 {[%clk 0:03:00.5]} 4. Nc3
{[%clk 0:03:03.7]} 4... Bg7 {[%clk 0:03:01.9]} 5. Nf3 {[%clk 0:03:05.1]} 5... f6
{[%clk 0:03:03.3]} 6. O-O {[%clk 0:03:06.3]} 6... Ne7 {[%clk 0:03:05]} 7. d4
{[%clk 0:03:07]} 7... O-O {[%clk 0:03:06.9]} 8. b3 {[%clk 0:03:07.7]} 8... Nd7
{[%clk 0:03:07.8]} 9. Bb2 {[%clk 0:03:08.6]} 9... h6 {[%clk 0:03:07.6]} 10. Rc1
{[%clk 0:02:56.1]} 10... f5 {[%clk 0:03:08.1]} 11. dxe5 {[%clk 0:02:57]} 11...
Nxe5 {[%clk 0:03:08.6]} 12. Nxe5 {[%clk 0:02:57.3]} 12... dxe5 {[%clk
0:03:02.5]} 13. Qxd8 {[%clk 0:02:56.3]} 13... Rxd8 {[%clk 0:03:02.9]} 14. Nd5
{[%clk 0:02:58.2]} 14... Nxd5 {[%clk 0:02:55.5]} 15. cxd5 {[%clk 0:03:00.1]}
15... e4 {[%clk 0:02:57.2]} 16. Bxg7 {[%clk 0:03:00.3]} 16... Kxg7 {[%clk
0:02:59.1]} 17. Rxc7+ {[%clk 0:03:02]} 17... Kf6 {[%clk 0:02:56.5]} 18. Rd1
{[%clk 0:02:53.2]} 18... Rd7 {[%clk 0:02:52.7]} 19. Rdc1 {[%clk 0:01:50.4]}
19... Rxc7 {[%clk 0:02:49.4]} 20. Rxc7 {[%clk 0:01:52.3]} 20... Ke5 {[%clk
0:02:50]} 21. f4+ {[%clk 0:01:52]} 21... Kxd5 {[%clk 0:02:50.6]} 22. Rg7 {[%clk
0:01:53.1]} 22... Kd4 {[%clk 0:02:38.3]} 23. Kf2 {[%clk 0:01:24.1]} 23... a5
{[%clk 0:02:35.9]} 24. Rxg6 {[%clk 0:01:21.8]} 24... h5 {[%clk 0:02:33.6]} 25.
Rg8 {[%clk 0:01:07.7]} 25... b5 {[%clk 0:02:11.8]} 26. e3+ {[%clk 0:00:35.6]}
26... Kc3 {[%clk 0:02:12.1]} 27. Bh3 {[%clk 0:00:37.1]} 27... a4 {[%clk
0:02:03.9]} 28. bxa4 {[%clk 0:00:33]} 28... b4 {[%clk 0:01:54.7]} 29. Bxf5
{[%clk 0:00:31.9]} 29... Rxa4 {[%clk 0:01:54.9]} 30. Rxc8+ {[%clk 0:00:32.2]}
30... Kd3 {[%clk 0:01:56.4]} 31. Be6 {[%clk 0:00:30.9]} 1-0

[Event "*** Qualifier 2: Titled Tuesday 3|2 Blitz"]
[Site "Chess.com"]
[Date "2017.04.11"]
[Round "9"]
[White "Bugcrusher"]
[Black "JaimeSantosLatasa"]
[Result "1-0"]
[WhiteElo "2429"]
[BlackElo "2525"]
[TimeControl "180+2"]
[EndTime "15:08:50 PDT"]
[Termination "Bugcrusher won by resignation"]

1. d4 {[%clk 0:03:01.9]} 1... Nf6 {[%clk 0:02:59.4]} 2. c4 {[%clk 0:03:00.7]}
2... e6 {[%clk 0:03:00.1]} 3. Nf3 {[%clk 0:03:02.1]} 3... Bb4+ {[%clk 0:03:01]}
4. Bd2 {[%clk 0:03:02.9]} 4... Be7 {[%clk 0:03:01.3]} 5. g3 {[%clk 0:03:03.4]}
5... d5 {[%clk 0:03:01.7]} 6. Bg2 {[%clk 0:03:04.5]} 6... c6 {[%clk 0:03:02.3]}
7. O-O {[%clk 0:03:05.3]} 7... Nbd7 {[%clk 0:03:02.6]} 8. Bf4 {[%clk 0:03:04.4]}
8... dxc4 {[%clk 0:03:02.5]} 9. a4 {[%clk 0:03:04.3]} 9... Nd5 {[%clk
0:03:01.5]} 10. Qc2 {[%clk 0:03:02.1]} 10... Nxf4 {[%clk 0:02:59.7]} 11. gxf4
{[%clk 0:03:04]} 11... c5 {[%clk 0:03:00.7]} 12. Na3 {[%clk 0:03:00.3]} 12...
cxd4 {[%clk 0:03:00.6]} 13. Nxd4 {[%clk 0:03:02.2]} 13... Nb6 {[%clk 0:02:59.9]}
14. Rfd1 {[%clk 0:03:01.2]} 14... Nd5 {[%clk 0:02:57.5]} 15. f5 {[%clk
0:02:55.2]} 15... O-O {[%clk 0:02:56.2]} 16. Nxc4 {[%clk 0:02:55.1]} 16... Bc5
{[%clk 0:02:53.5]} 17. Nb3 {[%clk 0:02:43.9]} 17... Qe7 {[%clk 0:02:36.2]} 18.
Bxd5 {[%clk 0:02:29.8]} 18... exd5 {[%clk 0:02:35.2]} 19. Rxd5 {[%clk
0:02:31.7]} 19... b6 {[%clk 0:02:32.2]} 20. Nxc5 {[%clk 0:02:29.1]} 20... bxc5
{[%clk 0:02:32]} 21. Rd3 {[%clk 0:02:14.5]} 21... Bxf5 {[%clk 0:02:30.6]} 22.
Rad1 {[%clk 0:01:55.9]} 22... Qg5+ {[%clk 0:02:21.9]} 23. Kh1 {[%clk 0:01:49.8]}
23... Be4+ {[%clk 0:02:21]} 24. f3 {[%clk 0:01:49.1]} 24... Bxd3 {[%clk
0:02:21.8]} 25. Rxd3 {[%clk 0:01:50]} 25... Rad8 {[%clk 0:02:22]} 26. Nd6 {[%clk
0:01:47.8]} 26... Qg6 {[%clk 0:02:17.8]} 27. Qxc5 {[%clk 0:01:43.8]} 27... Kh8
{[%clk 0:02:13.9]} 28. b4 {[%clk 0:01:40.7]} 28... Rd7 {[%clk 0:02:13.3]} 29.
Nf5 {[%clk 0:01:21.6]} 29... Rdd8 {[%clk 0:02:12.6]} 30. Nd6 {[%clk 0:01:21]}
30... h6 {[%clk 0:02:12.4]} 31. Qc6 {[%clk 0:00:48.2]} 31... Kh7 {[%clk
0:02:07.5]} 32. b5 {[%clk 0:00:48]} 32... f5 {[%clk 0:02:05.1]} 33. Qc7 {[%clk
0:00:42.2]} 33... Qe6 {[%clk 0:02:04.6]} 34. Nxf5 {[%clk 0:00:30.1]} 34... Rxf5
{[%clk 0:02:03.9]} 35. Qxd8 {[%clk 0:00:21]} 35... Qxe2 {[%clk 0:02:00.3]} 36.
h4 {[%clk 0:00:22.9]} 36... Qf1+ {[%clk 0:01:58.6]} 37. Kh2 {[%clk 0:00:23.6]}
37... Qf2+ {[%clk 0:01:59.8]} 38. Kh3 {[%clk 0:00:24.9]} 38... Rf4 {[%clk
0:01:46.5]} 39. h5 {[%clk 0:00:12.6]} 39... Rf5 {[%clk 0:01:41.5]} 40. Qe8
{[%clk 0:00:13.1]} 40... Qf1+ {[%clk 0:01:39.6]} 41. Kg4 {[%clk 0:00:14]} 41...
Qxd3 {[%clk 0:01:40]} 42. Qg6+ {[%clk 0:00:14.4]} 42... Kg8 {[%clk 0:01:39.8]}
43. Qxf5 {[%clk 0:00:14.6]} 43... Qc4+ {[%clk 0:01:40.6]} 44. Qe4 {[%clk
0:00:15.3]} 44... Qf7 {[%clk 0:01:36.8]} 45. Qa8+ {[%clk 0:00:13.5]} 45... Kh7
{[%clk 0:01:37.5]} 46. Qe4+ {[%clk 0:00:15.2]} 46... Kg8 {[%clk 0:01:38.2]} 47.
a5 {[%clk 0:00:15]} 47... Qd7+ {[%clk 0:01:36.8]} 48. Qf5 {[%clk 0:00:16.2]}
48... Qd4+ {[%clk 0:01:37.7]} 49. Kh3 {[%clk 0:00:17.4]} 49... Qb4 {[%clk
0:01:36.3]} 50. Qd5+ {[%clk 0:00:17.9]} 50... Kh8 {[%clk 0:01:36.6]} 51. Qa8+
{[%clk 0:00:18.7]} 51... Kh7 {[%clk 0:01:37.3]} 52. Qe4+ {[%clk 0:00:19.7]} 1-0

[Event "*** Qualifier 2: Titled Tuesday 3|2 Blitz"]
[Site "Chess.com"]
[Date "2017.04.11"]
[Round "9"]
[White "ruvat"]
[Black "sorito"]
[Result "0-1"]
[WhiteElo "2223"]
[BlackElo "2302"]
[TimeControl "180+2"]
[EndTime "15:09:10 PDT"]
[Termination "sorito won by resignation"]

1. d4 {[%clk 0:02:43.7]} 1... Nf6 {[%clk 0:02:59.6]} 2. c4 {[%clk 0:02:44.5]}
2... e6 {[%clk 0:03:00.8]} 3. g3 {[%clk 0:02:44.8]} 3... d5 {[%clk 0:02:58.3]}
4. Nf3 {[%clk 0:02:45.2]} 4... Bb4+ {[%clk 0:02:59.8]} 5. Bd2 {[%clk 0:02:45.4]}
5... Be7 {[%clk 0:03:01.4]} 6. Bg2 {[%clk 0:02:46]} 6... O-O {[%clk 0:03:02.7]}
7. Qc2 {[%clk 0:02:46.7]} 7... c6 {[%clk 0:03:02.4]} 8. O-O {[%clk 0:02:47.2]}
8... b6 {[%clk 0:03:03]} 9. b3 {[%clk 0:02:46.5]} 9... Nbd7 {[%clk 0:03:02.1]}
10. a4 {[%clk 0:02:46.5]} 10... a5 {[%clk 0:02:59.7]} 11. Na3 {[%clk 0:02:46.1]}
11... Ba6 {[%clk 0:03:00.3]} 12. Rfd1 {[%clk 0:02:38.7]} 12... Rc8 {[%clk
0:03:01]} 13. Qb2 {[%clk 0:02:38.7]} 13... Bd6 {[%clk 0:02:59.6]} 14. Rac1
{[%clk 0:02:24.1]} 14... Qe7 {[%clk 0:03:00.6]} 15. Nb1 {[%clk 0:02:20.6]} 15...
Ne4 {[%clk 0:03:01.1]} 16. Be1 {[%clk 0:02:17]} 16... f5 {[%clk 0:03:00.5]} 17.
e3 {[%clk 0:02:11]} 17... g5 {[%clk 0:02:42]} 18. Ne5 {[%clk 0:01:49.6]} 18...
Nxe5 {[%clk 0:02:40.2]} 19. dxe5 {[%clk 0:01:51.5]} 19... Bc5 {[%clk 0:02:41.1]}
20. Nd2 {[%clk 0:01:41.8]} 20... Ba3 {[%clk 0:02:37.7]} 21. Qc2 {[%clk
0:01:39.4]} 21... Bxc1 {[%clk 0:02:38.3]} 22. Rxc1 {[%clk 0:01:40.6]} 22... g4
{[%clk 0:02:33.1]} 23. Bf1 {[%clk 0:01:25.5]} 23... Bb7 {[%clk 0:02:25.9]} 24.
Nxe4 {[%clk 0:01:21.6]} 24... fxe4 {[%clk 0:02:16.8]} 25. c5 {[%clk 0:01:23.5]}
25... Rf5 {[%clk 0:02:04]} 26. cxb6 {[%clk 0:01:20.3]} 26... c5 {[%clk 0:02:05]}
27. Bxa5 {[%clk 0:01:16.2]} 27... Rcf8 {[%clk 0:01:28.1]} 28. Be1 {[%clk
0:01:15.2]} 28... Rc8 {[%clk 0:01:23.5]} 29. a5 {[%clk 0:01:14.7]} 29... d4
{[%clk 0:01:21.8]} 30. exd4 {[%clk 0:01:08.8]} 30... cxd4 {[%clk 0:01:16.7]} 31.
Qxc8+ {[%clk 0:01:09.4]} 31... Bxc8 {[%clk 0:01:17.5]} 32. Rxc8+ {[%clk
0:01:09.9]} 32... Rf8 {[%clk 0:01:19.4]} 33. Rc7 {[%clk 0:00:52.6]} 33... Qd8
{[%clk 0:01:02.6]} 34. Bc4 {[%clk 0:00:49.7]} 34... e3 {[%clk 0:01:03.6]} 35. a6
{[%clk 0:00:26.5]} 35... d3 {[%clk 0:01:02]} 36. fxe3 {[%clk 0:00:21.9]} 36...
d2 {[%clk 0:01:02.9]} 37. Bxe6+ {[%clk 0:00:20.1]} 37... Kh8 {[%clk 0:01:03.2]}
38. Bxd2 {[%clk 0:00:17.3]} 38... Qxd2 {[%clk 0:01:03.7]} 39. Rf7 {[%clk
0:00:17.3]} 39... Qxe3+ {[%clk 0:00:58.4]} 40. Kg2 {[%clk 0:00:17.3]} 40... Qe4+
{[%clk 0:00:48.4]} 41. Kg1 {[%clk 0:00:17.7]} 41... Rxf7 {[%clk 0:00:45.4]} 42.
Bxf7 {[%clk 0:00:19.6]} 42... Qxe5 {[%clk 0:00:46.3]} 43. a7 {[%clk 0:00:18.5]}
43... Qa1+ {[%clk 0:00:43.6]} 44. Kf2 {[%clk 0:00:17.8]} 44... Qa6 {[%clk
0:00:44]} 45. Bd5 {[%clk 0:00:14.4]} 45... Qxb6+ {[%clk 0:00:44.9]} 0-1

[Event "*** Qualifier 2: Titled Tuesday 3|2 Blitz"]
[Site "Chess.com"]
[Date "2017.04.11"]
[Round "9"]
[White "TheNextLevelFan"]
[Black "Vrolijk"]
[Result "1-0"]
[WhiteElo "2383"]
[BlackElo "2286"]
[TimeControl "180+2"]
[EndTime "15:09:10 PDT"]
[Termination "TheNextLevelFan won by resignation"]

1. d4 {[%clk 0:03:02]} 1... Nf6 {[%clk 0:03:00.5]} 2. c4 {[%clk 0:03:02.3]} 2...
g6 {[%clk 0:03:00.4]} 3. Nc3 {[%clk 0:03:03.4]} 3... Bg7 {[%clk 0:02:54.4]} 4.
e4 {[%clk 0:03:03.7]} 4... d6 {[%clk 0:02:55.6]} 5. Be2 {[%clk 0:03:03.4]} 5...
O-O {[%clk 0:02:55.8]} 6. Nf3 {[%clk 0:03:03.6]} 6... e5 {[%clk 0:02:56.5]} 7.
d5 {[%clk 0:02:59.6]} 7... a5 {[%clk 0:02:56.4]} 8. O-O {[%clk 0:02:52.4]} 8...
Na6 {[%clk 0:02:56.7]} 9. Re1 {[%clk 0:02:40.7]} 9... Nc5 {[%clk 0:02:55.4]} 10.
Bf1 {[%clk 0:02:41.7]} 10... Nh5 {[%clk 0:02:55.1]} 11. b3 {[%clk 0:02:35]}
11... f5 {[%clk 0:02:54.8]} 12. Nd2 {[%clk 0:02:07.8]} 12... Nf6 {[%clk
0:02:51.3]} 13. a3 {[%clk 0:02:03.9]} 13... Qe7 {[%clk 0:02:27.5]} 14. Bb2
{[%clk 0:01:54.9]} 14... Qf7 {[%clk 0:02:28.5]} 15. exf5 {[%clk 0:01:55.2]}
15... Bxf5 {[%clk 0:02:28.2]} 16. b4 {[%clk 0:01:30]} 16... axb4 {[%clk
0:02:28.8]} 17. axb4 {[%clk 0:01:31.9]} 17... Rxa1 {[%clk 0:02:27]} 18. Bxa1
{[%clk 0:01:33.2]} 18... Nd3 {[%clk 0:02:27.1]} 19. Bxd3 {[%clk 0:01:34.1]}
19... Bxd3 {[%clk 0:02:29]} 20. Re3 {[%clk 0:01:31]} 20... Ng4 {[%clk
0:01:30.6]} 21. Rf3 {[%clk 0:01:27.3]} 21... Bf5 {[%clk 0:01:22.9]} 22. h3
{[%clk 0:01:28.1]} 22... Nf6 {[%clk 0:01:15]} 23. Nce4 {[%clk 0:01:20.4]} 23...
Nxe4 {[%clk 0:01:14.4]} 24. Nxe4 {[%clk 0:01:21.1]} 24... Qd7 {[%clk 0:01:13.2]}
25. Ng3 {[%clk 0:01:18.6]} 25... Qe8 {[%clk 0:00:42.2]} 26. Nxf5 {[%clk
0:01:15.7]} 26... gxf5 {[%clk 0:00:44.1]} 27. Rg3 {[%clk 0:01:13.4]} 27... Kh8
{[%clk 0:00:43.1]} 28. Bc3 {[%clk 0:00:57.1]} 28... Qf7 {[%clk 0:00:38.2]} 29.
b5 {[%clk 0:00:51]} 29... f4 {[%clk 0:00:34.7]} 30. Rg5 {[%clk 0:00:46.4]} 30...
h6 {[%clk 0:00:35.9]} 31. Rg4 {[%clk 0:00:45.5]} 31... Qf5 {[%clk 0:00:37.4]}
32. b6 {[%clk 0:00:40]} 32... cxb6 {[%clk 0:00:37.4]} 33. Bb4 {[%clk 0:00:34.5]}
33... Rf6 {[%clk 0:00:36.9]} 34. Qa4 {[%clk 0:00:32.4]} 34... Kh7 {[%clk
0:00:32.9]} 35. Qe8 {[%clk 0:00:32.2]} 35... Qb1+ {[%clk 0:00:32.5]} 36. Kh2
{[%clk 0:00:32.5]} 36... Qxb4 {[%clk 0:00:20.6]} 37. Qd7 {[%clk 0:00:33.3]}
37... Rg6 {[%clk 0:00:13.2]} 38. Qf5 {[%clk 0:00:34.1]} 1-0

[Event "*** Qualifier 2: Titled Tuesday 3|2 Blitz"]
[Site "Chess.com"]
[Date "2017.04.11"]
[Round "9"]
[White "Vamostodorecto"]
[Black "alturas_pacificas"]
[Result "1-0"]
[WhiteElo "2354"]
[BlackElo "2149"]
[TimeControl "180+2"]
[EndTime "15:09:20 PDT"]
[Termination "Vamostodorecto won by resignation"]

1. d4 {[%clk 0:02:47.5]} 1... d5 {[%clk 0:03:00.4]} 2. c4 {[%clk 0:02:48.1]}
2... c6 {[%clk 0:03:01.9]} 3. Nf3 {[%clk 0:02:48.6]} 3... Nf6 {[%clk 0:03:02.9]}
4. Nc3 {[%clk 0:02:50.2]} 4... e6 {[%clk 0:03:03.8]} 5. e3 {[%clk 0:02:50.3]}
5... Nbd7 {[%clk 0:03:04.1]} 6. Bd3 {[%clk 0:02:51.8]} 6... dxc4 {[%clk
0:03:05.3]} 7. Bxc4 {[%clk 0:02:53.7]} 7... b5 {[%clk 0:03:06.7]} 8. Bd3 {[%clk
0:02:55.4]} 8... Bb7 {[%clk 0:03:08.2]} 9. O-O {[%clk 0:02:49.8]} 9... a6 {[%clk
0:03:08.9]} 10. e4 {[%clk 0:02:50.7]} 10... c5 {[%clk 0:03:09.1]} 11. e5 {[%clk
0:02:52.3]} 11... Nd5 {[%clk 0:03:08.1]} 12. Nxd5 {[%clk 0:02:30.5]} 12... Bxd5
{[%clk 0:03:08.4]} 13. Qe2 {[%clk 0:02:24.6]} 13... Be7 {[%clk 0:02:59.3]} 14.
Be4 {[%clk 0:02:19]} 14... Nb6 {[%clk 0:02:40.2]} 15. dxc5 {[%clk 0:02:13]}
15... Bxc5 {[%clk 0:02:39.2]} 16. Bg5 {[%clk 0:02:12.1]} 16... Be7 {[%clk
0:02:37.9]} 17. Bf4 {[%clk 0:02:00.5]} 17... O-O {[%clk 0:02:23]} 18. Rfd1
{[%clk 0:01:59.3]} 18... Rc8 {[%clk 0:02:12.8]} 19. Be3 {[%clk 0:01:55.5]} 19...
Bc5 {[%clk 0:01:52.7]} 20. Bxh7+ {[%clk 0:01:46.6]} 20... Kxh7 {[%clk
0:01:51.4]} 21. Ng5+ {[%clk 0:01:47.4]} 21... Kg6 {[%clk 0:01:47.2]} 22. Qg4
{[%clk 0:01:43.5]} 22... f5 {[%clk 0:01:15.6]} 23. exf6 {[%clk 0:01:42.8]} 23...
Kxf6 {[%clk 0:01:11.4]} 24. Nxe6 {[%clk 0:01:02.7]} 24... Bxe6 {[%clk 0:01:08]}
25. Qg5+ {[%clk 0:00:57.2]} 25... Kf7 {[%clk 0:01:05.5]} 26. Rxd8 {[%clk
0:00:57.5]} 26... Rfxd8 {[%clk 0:01:00.2]} 27. Bxc5 {[%clk 0:00:55.9]} 27... Nd5
{[%clk 0:01:01.7]} 28. Be3 {[%clk 0:00:54]} 28... Nxe3 {[%clk 0:00:59.7]} 29.
Qxe3 {[%clk 0:00:55.9]} 29... Rd6 {[%clk 0:00:59.6]} 30. h4 {[%clk 0:00:54]}
30... Rcd8 {[%clk 0:00:59.8]} 31. a3 {[%clk 0:00:50.8]} 31... Rd3 {[%clk
0:00:56.9]} 32. Qa7+ {[%clk 0:00:49.8]} 32... R8d7 {[%clk 0:00:54.4]} 33. Qxa6
{[%clk 0:00:50.2]} 33... Bc4 {[%clk 0:00:55.9]} 34. Qc6 {[%clk 0:00:45.9]} 34...
R7d6 {[%clk 0:00:53.6]} 35. Qc7+ {[%clk 0:00:46.4]} 35... Rd7 {[%clk 0:00:55]}
36. Qf4+ {[%clk 0:00:46.8]} 36... Kg8 {[%clk 0:00:56.5]} 37. Re1 {[%clk
0:00:46.5]} 37... Rd1 {[%clk 0:00:52.4]} 38. Rxd1 {[%clk 0:00:44.2]} 38... Rxd1+
{[%clk 0:00:54.3]} 39. Kh2 {[%clk 0:00:45.2]} 39... Rd7 {[%clk 0:00:51.2]} 40.
b3 {[%clk 0:00:42.7]} 40... Bxb3 {[%clk 0:00:42.2]} 41. Qb8+ {[%clk 0:00:42.9]}
41... Kh7 {[%clk 0:00:43.6]} 42. Qxb5 {[%clk 0:00:44.4]} 42... Be6 {[%clk
0:00:45.1]} 43. Qh5+ {[%clk 0:00:42.7]} 43... Kg8 {[%clk 0:00:40.7]} 44. Qe8+
{[%clk 0:00:44.6]} 44... Kh7 {[%clk 0:00:38.1]} 45. Qxe6 {[%clk 0:00:45.9]}
45... Ra7 {[%clk 0:00:36.6]} 46. Qe4+ {[%clk 0:00:45.8]} 46... Kh8 {[%clk
0:00:36]} 47. a4 {[%clk 0:00:47.2]} 47... g6 {[%clk 0:00:36.1]} 48. Qd4+ {[%clk
0:00:46.9]} 48... Rg7 {[%clk 0:00:34.5]} 49. a5 {[%clk 0:00:47.2]} 49... Kh7
{[%clk 0:00:33.4]} 50. Qxg7+ {[%clk 0:00:47]} 1-0

[Event "*** Qualifier 2: Titled Tuesday 3|2 Blitz"]
[Site "Chess.com"]
[Date "2017.04.11"]
[Round "9"]
[White "chesstatour"]
[Black "MartinMatthiesen"]
[Result "0-1"]
[WhiteElo "1943"]
[BlackElo "2253"]
[TimeControl "180+2"]
[EndTime "15:09:35 PDT"]
[Termination "MartinMatthiesen won by resignation"]

1. c4 {[%clk 0:03:02]} 1... c5 {[%clk 0:02:35.7]} 2. Nc3 {[%clk 0:02:57.6]} 2...
Nc6 {[%clk 0:02:35.2]} 3. Nf3 {[%clk 0:02:59]} 3... g6 {[%clk 0:02:35.4]} 4. d4
{[%clk 0:03:00.5]} 4... cxd4 {[%clk 0:02:35.6]} 5. Nxd4 {[%clk 0:03:02.4]} 5...
Bg7 {[%clk 0:02:36.7]} 6. e3 {[%clk 0:03:01.6]} 6... Nf6 {[%clk 0:02:36]} 7. Be2
{[%clk 0:03:02.1]} 7... O-O {[%clk 0:02:35.9]} 8. O-O {[%clk 0:03:03.6]} 8...
Nxd4 {[%clk 0:02:36]} 9. exd4 {[%clk 0:03:04]} 9... d5 {[%clk 0:02:36.6]} 10. b3
{[%clk 0:02:52.8]} 10... Qa5 {[%clk 0:02:18.9]} 11. Bd2 {[%clk 0:02:43.5]} 11...
dxc4 {[%clk 0:02:15.1]} 12. bxc4 {[%clk 0:02:42]} 12... Be6 {[%clk 0:01:42.2]}
13. Rb1 {[%clk 0:02:18.1]} 13... Qc7 {[%clk 0:01:31.1]} 14. Qb3 {[%clk
0:01:53.1]} 14... b6 {[%clk 0:01:12.9]} 15. Nb5 {[%clk 0:01:43.2]} 15... Qd7
{[%clk 0:01:12.3]} 16. d5 {[%clk 0:01:13.4]} 16... Bf5 {[%clk 0:01:04.8]} 17.
Rbc1 {[%clk 0:01:03.9]} 17... Ne4 {[%clk 0:01:00.5]} 18. Be3 {[%clk 0:01:00]}
18... Rac8 {[%clk 0:00:56.1]} 19. Rfd1 {[%clk 0:00:56.3]} 19... Nc5 {[%clk
0:00:20.4]} 20. Qa3 {[%clk 0:00:43.3]} 20... a6 {[%clk 0:00:21.2]} 21. Nd4
{[%clk 0:00:39.2]} 21... Qb7 {[%clk 0:00:21.6]} 22. Nxf5 {[%clk 0:00:35]} 22...
gxf5 {[%clk 0:00:23.5]} 23. Rb1 {[%clk 0:00:33.8]} 23... Qc7 {[%clk 0:00:23.3]}
24. Bxc5 {[%clk 0:00:28]} 24... bxc5 {[%clk 0:00:22.3]} 25. Qxa6 {[%clk
0:00:23.7]} 25... Bd4 {[%clk 0:00:22]} 26. Qb7 {[%clk 0:00:14.3]} 26... Qf4
{[%clk 0:00:21.6]} 27. Bf3 {[%clk 0:00:13.7]} 27... Ra8 {[%clk 0:00:20.9]} 28.
d6 {[%clk 0:00:11.7]} 28... Rxa2 {[%clk 0:00:21.2]} 29. dxe7 {[%clk 0:00:12.9]}
29... Re8 {[%clk 0:00:21.7]} 30. Qd7 {[%clk 0:00:07.2]} 30... Rxe7 {[%clk
0:00:15]} 31. Qxe7 {[%clk 0:00:07.6]} 31... Rxf2 {[%clk 0:00:16.5]} 32. Kh1
{[%clk 0:00:07.8]} 32... Rxf3 {[%clk 0:00:17.6]} 33. Rb8+ {[%clk 0:00:05.8]}
33... Kg7 {[%clk 0:00:18.9]} 34. Qf8+ {[%clk 0:00:05.6]} 34... Kg6 {[%clk
0:00:17.4]} 35. Rb6+ {[%clk 0:00:05.4]} 35... f6 {[%clk 0:00:18.6]} 36. Qg8+
{[%clk 0:00:04.9]} 36... Kh6 {[%clk 0:00:19.9]} 37. Qf8+ {[%clk 0:00:04.7]}
37... Kg6 {[%clk 0:00:19.4]} 38. Qg8+ {[%clk 0:00:05.7]} 38... Kh6 {[%clk
0:00:20.5]} 39. Qf8+ {[%clk 0:00:04.3]} 39... Kg6 {[%clk 0:00:17.1]} 40. Qe8+
{[%clk 0:00:05.2]} 40... Kh6 {[%clk 0:00:17.3]} 41. Qe2 {[%clk 0:00:04.8]} 41...
Rf2 {[%clk 0:00:13.4]} 42. Qe7 {[%clk 0:00:03.3]} 42... Rf1+ {[%clk 0:00:11.6]}
0-1

[Event "*** Qualifier 2: Titled Tuesday 3|2 Blitz"]
[Site "Chess.com"]
[Date "2017.04.11"]
[Round "9"]
[White "MasterLeif"]
[Black "proxy6"]
[Result "1-0"]
[WhiteElo "2300"]
[BlackElo "2195"]
[TimeControl "180+2"]
[EndTime "15:09:43 PDT"]
[Termination "MasterLeif won by resignation"]

1. b3 {[%clk 0:02:55.2]} 1... e5 {[%clk 0:02:59]} 2. Bb2 {[%clk 0:02:55.2]} 2...
d6 {[%clk 0:02:59.8]} 3. e3 {[%clk 0:02:55.8]} 3... Be6 {[%clk 0:03:01.3]} 4.
Nf3 {[%clk 0:02:51]} 4... Be7 {[%clk 0:02:58.1]} 5. Be2 {[%clk 0:02:50.8]} 5...
Nf6 {[%clk 0:02:59.4]} 6. d4 {[%clk 0:02:50.3]} 6... exd4 {[%clk 0:02:48]} 7.
Nxd4 {[%clk 0:02:51.1]} 7... O-O {[%clk 0:02:47.9]} 8. Nxe6 {[%clk 0:02:51.1]}
8... fxe6 {[%clk 0:02:49.8]} 9. O-O {[%clk 0:02:51.1]} 9... Nc6 {[%clk 0:02:51]}
10. c4 {[%clk 0:02:51.9]} 10... e5 {[%clk 0:02:49.3]} 11. Nc3 {[%clk 0:02:52.3]}
11... Qd7 {[%clk 0:02:50]} 12. Nd5 {[%clk 0:02:50.9]} 12... Nxd5 {[%clk
0:02:46.5]} 13. cxd5 {[%clk 0:02:50.1]} 13... Nd8 {[%clk 0:02:46.9]} 14. Rc1
{[%clk 0:02:47.6]} 14... c6 {[%clk 0:02:41.9]} 15. Bg4 {[%clk 0:02:43.8]} 15...
Qe8 {[%clk 0:02:42.2]} 16. dxc6 {[%clk 0:02:39.7]} 16... bxc6 {[%clk 0:02:44.1]}
17. f4 {[%clk 0:02:27.2]} 17... exf4 {[%clk 0:02:33.7]} 18. exf4 {[%clk
0:02:28.6]} 18... Bf6 {[%clk 0:02:31.6]} 19. Re1 {[%clk 0:02:19.8]} 19... Qg6
{[%clk 0:02:22.5]} 20. Bxf6 {[%clk 0:02:07.4]} 20... Qxf6 {[%clk 0:02:19.8]} 21.
g3 {[%clk 0:02:02.8]} 21... d5 {[%clk 0:02:13.3]} 22. Re5 {[%clk 0:01:52.9]}
22... Rb8 {[%clk 0:01:28.1]} 23. Qd2 {[%clk 0:01:39.4]} 23... Rb7 {[%clk
0:01:10]} 24. b4 {[%clk 0:01:35.8]} 24... Re7 {[%clk 0:01:05]} 25. Rce1 {[%clk
0:01:35.8]} 25... Rxe5 {[%clk 0:01:04]} 26. Rxe5 {[%clk 0:01:37.7]} 26... Qd6
{[%clk 0:01:01.3]} 27. Qd4 {[%clk 0:01:36.3]} 27... Nf7 {[%clk 0:00:48.4]} 28.
Re6 {[%clk 0:01:35.4]} 28... Qc7 {[%clk 0:00:49.3]} 29. Qc5 {[%clk 0:01:29.8]}
29... Nd8 {[%clk 0:00:46.2]} 30. Re7 {[%clk 0:01:28]} 30... Qb6 {[%clk
0:00:45.2]} 31. Rxa7 {[%clk 0:01:22.8]} 31... Qxc5+ {[%clk 0:00:44.6]} 32. bxc5
{[%clk 0:01:24.7]} 32... Re8 {[%clk 0:00:45.7]} 33. Kf2 {[%clk 0:01:11.4]} 33...
Kf8 {[%clk 0:00:46.8]} 34. a4 {[%clk 0:01:06.4]} 34... Re7 {[%clk 0:00:39.7]}
35. Ra8 {[%clk 0:01:03.3]} 35... Ke8 {[%clk 0:00:38.3]} 36. a5 {[%clk
0:01:01.6]} 36... Rb7 {[%clk 0:00:29.4]} 37. a6 {[%clk 0:01:00.1]} 37... Rb2+
{[%clk 0:00:27.6]} 38. Ke3 {[%clk 0:00:58.5]} 38... Rxh2 {[%clk 0:00:20.8]} 39.
Be2 {[%clk 0:00:59.9]} 39... Rh1 {[%clk 0:00:21.4]} 40. Ra7 {[%clk 0:00:43]}
40... Ne6 {[%clk 0:00:14.9]} 41. Rb7 {[%clk 0:00:30.7]} 41... Ra1 {[%clk
0:00:09.7]} 42. a7 {[%clk 0:00:28.8]} 42... d4+ {[%clk 0:00:08.6]} 43. Kf2
{[%clk 0:00:25]} 43... Nd8 {[%clk 0:00:03.3]} 44. Rxg7 {[%clk 0:00:20.6]} 44...
Ra2 {[%clk 0:00:04.4]} 45. Ke1 {[%clk 0:00:19.1]} 45... Nf7 {[%clk 0:00:02.4]}
46. Rg8+ {[%clk 0:00:19.9]} 1-0